bitfinex/quotes_BTCUSD_20241003
["timestamp","ask_amount","ask_price","bid_price","bid_amount"]
[1727927841596,0.0161241,61587.0,61586.0,0.27570298]
[1727927841855,0.0161241,61587.0,61586.0,0.27970298]
[1727927842084,0.0161241,61587.0,61586.0,0.27245602]
[1727927842303,0.0161241,61587.0,61586.0,0.28345602]
[1727927844080,0.0169421,61587.0,61586.0,0.28345602]
[1727927844306,0.0169421,61587.0,61586.0,0.150899]
[1727927845710,0.0169421,61587.0,61586.0,0.139899]
[1727927845940,0.0169421,61587.0,61586.0,0.150899]
[1727927846204,0.0169421,61587.0,61586.0,0.021]
[1727927846412,0.1468391,61587.0,61586.0,0.021]
[1727927846636,0.1468391,61587.0,61586.0,0.011]
[1727927846860,0.15908186,61587.0,61586.0,0.011]
[1727927847304,0.15908186,61587.0,61586.0,0.021]
[1727927847743,0.15908186,61587.0,61586.0,0.01]
[1727927847959,0.15908186,61587.0,61582.0,0.129906]
[1727927848179,0.16008186,61587.0,61582.0,0.129906]
[1727927848606,0.16008186,61587.0,61581.0,0.24449678]
[1727927848818,0.02918486,61587.0,61584.0,0.129903]
[1727927849263,0.03018486,61587.0,61584.0,0.129903]
[1727927850409,0.03018486,61587.0,61585.0,0.1299]
[1727927850621,0.03018486,61587.0,61582.0,0.259815]
[1727927850622,0.03118486,61587.0,61582.0,0.259815]
[1727927850846,0.04339766,61587.0,61582.0,0.259815]
[1727927851063,0.04239766,61587.0,61584.0,0.129903]
[1727927851280,0.01221408,61586.0,61585.0,0.1299]
[1727927851496,0.01221408,61586.0,61583.0,0.259809]
[1727927851497,0.01221408,61586.0,61583.0,0.129904]
[1727927852152,0.01221408,61586.0,61582.0,0.259815]
[1727927852375,0.01221408,61586.0,61583.0,0.129905]
[1727927852823,0.01221408,61586.0,61585.0,0.129901]
[1727927853285,0.01221408,61586.0,61583.0,0.129905]
[1727927853718,0.14211308,61586.0,61581.0,0.24449678]
[1727927853940,0.14211308,61586.0,61583.0,0.001]
[1727927854159,0.14211308,61586.0,61582.0,0.129907]
[1727927854378,0.01221408,61586.0,61585.0,0.130901]
[1727927854823,0.01221408,61586.0,61585.0,0.129901]
[1727927855033,0.0169421,61587.0,61586.0,0.129899]
[1727927857083,0.0189421,61587.0,61586.0,0.129899]
[1727927857547,0.0179421,61587.0,61586.0,0.129899]
[1727927857762,0.0179421,61587.0,61586.0,0.131899]
[1727927857974,0.0169421,61587.0,61586.0,0.131899]
[1727927858870,0.0169421,61587.0,61586.0,0.132899]
[1727927858871,0.02910249,61587.0,61586.0,0.132899]
[1727927859086,0.02910249,61587.0,61586.0,0.135899]
[1727927861218,0.0169421,61587.0,61586.0,0.135899]
[1727927861426,0.0169421,61587.0,61586.0,0.26845602]
[1727927862203,0.04239657,61587.0,61586.0,0.26845602]
[1727927864535,0.0169421,61587.0,61586.0,0.26845602]
[1727927867748,0.04239664,61587.0,61586.0,0.26845602]
[1727927869910,0.04239664,61587.0,61586.0,0.135899]
[1727927871832,0.17229364,61587.0,61586.0,0.006]
[1727927872067,0.04239664,61587.0,61586.0,0.006]
[1727927872319,0.05458051,61587.0,61586.0,0.006]
[1727927873278,0.18447751,61587.0,61586.0,0.006]
[1727927873508,0.26717751,61587.0,61586.0,0.006]
[1727927874666,0.24172297,61587.0,61586.0,0.006]
[1727927877761,0.29036424,61587.0,61586.0,0.006]
[1727927878031,0.40528488,61587.0,61586.0,0.006]
[1727927878271,0.42960552,61587.0,61586.0,0.006]
[1727927878515,0.42960552,61587.0,61586.0,0.003]
[1727927878760,0.129905,61583.0,61582.0,0.24449678]
[1727927879244,0.14026893,61583.0,61582.0,0.24449678]
[1727927879482,0.129908,61582.0,61581.0,0.001636]
[1727927880244,0.14026729,61582.0,61581.0,0.001636]
[1727927881485,0.14226729,61582.0,61581.0,0.001636]
[1727927881971,0.14326729,61582.0,61581.0,0.001636]
[1727927882460,0.14026729,61582.0,61581.0,0.001636]
[1727927883935,0.14204677,61582.0,61581.0,0.001636]
[1727927884423,0.14304677,61582.0,61581.0,0.001636]
[1727927884685,0.14404677,61582.0,61581.0,0.001636]
[1727927884891,0.01213877,61582.0,61581.0,0.131546]
[1727927885124,0.01160975,61582.0,61581.0,0.131546]
[1727927885338,0.01260975,61582.0,61581.0,0.131546]
[1727927885551,0.01460975,61582.0,61581.0,0.001636]
[1727927885764,0.14251775,61582.0,61581.0,0.001636]
[1727927886641,0.14151775,61582.0,61581.0,0.001636]
[1727927886861,0.14251775,61582.0,61581.0,0.001636]
[1727927887079,0.14451775,61582.0,61581.0,0.001636]
[1727927887533,0.14351775,61582.0,61581.0,0.001636]
[1727927887785,0.14451775,61582.0,61581.0,0.001636]
[1727927888003,0.1699761,61582.0,61581.0,0.001636]
[1727927888435,0.1679761,61582.0,61581.0,0.001636]
[1727927888652,0.1689761,61582.0,61581.0,0.001636]
[1727927891305,0.0398861,61582.0,61581.0,0.001636]
[1727927891987,0.0388861,61582.0,61581.0,0.001636]
[1727927892204,0.0398861,61582.0,61581.0,0.001636]
[1727927892852,0.0388861,61582.0,61581.0,0.001636]
[1727927893067,0.0378861,61582.0,61581.0,0.001636]
[1727927893282,0.0388861,61582.0,61581.0,0.002636]
[1727927893721,0.0378861,61582.0,61581.0,0.001636]
[1727927894155,0.0378861,61582.0,61581.0,0.131546]
[1727927894595,0.01242775,61582.0,61581.0,0.131546]
[1727927894808,0.01242775,61582.0,61581.0,0.132546]
[1727927895269,0.01342775,61582.0,61581.0,0.132546]
[1727927895530,0.01242775,61582.0,61581.0,0.132546]
[1727927895741,0.01242775,61582.0,61581.0,0.134546]
[1727927895970,0.01242775,61582.0,61581.0,0.133546]
[1727927896897,0.01242775,61582.0,61581.0,0.131546]
[1727927897765,0.03788491,61582.0,61581.0,0.131546]
[1727927899038,0.03788491,61582.0,61581.0,0.136546]
[1727927899268,0.03788491,61582.0,61581.0,0.131546]
[1727927899487,0.03788491,61582.0,61581.0,0.134546]
[1727927899697,0.03788491,61582.0,61581.0,0.131546]
[1727927900139,0.03788491,61582.0,61581.0,0.136546]
[1727927901246,0.03788491,61582.0,61581.0,0.141546]
[1727927901508,0.03788491,61582.0,61581.0,0.136546]
[1727927901723,0.03788491,61582.0,61581.0,0.142546]
[1727927902385,0.03788491,61582.0,61581.0,0.136546]
[1727927902838,0.03788491,61582.0,61581.0,0.138546]
[1727927903068,0.03788491,61582.0,61581.0,0.131546]
[1727927903305,0.03788491,61582.0,61581.0,0.135546]
[1727927903739,0.03788491,61582.0,61581.0,0.133546]
[1727927904212,0.03788491,61582.0,61581.0,0.135546]
[1727927904667,0.01242775,61582.0,61581.0,0.133546]
[1727927905292,0.01242775,61582.0,61581.0,0.135546]
[1727927907787,0.03788461,61582.0,61581.0,0.135546]
[1727927909135,0.02752532,61582.0,61581.0,0.135546]
[1727927909426,0.02627486,61582.0,61581.0,0.135546]
[1727927910022,0.03874052,61582.0,61581.0,0.135546]
[1727927910484,0.02783031,61582.0,61581.0,0.135546]
[1727927910713,0.02627486,61582.0,61581.0,0.135546]
[1727927910926,0.03872502,61582.0,61581.0,0.135546]
[1727927914457,0.01326816,61582.0,61581.0,0.135546]
[1727927914842,0.000818,61582.0,61581.0,0.135546]
[1727927915854,0.000818,61582.0,61581.0,0.133546]
[1727927916467,0.000818,61582.0,61581.0,0.131546]
[1727927916930,0.000818,61582.0,61581.0,0.137546]
[1727927917385,0.000818,61582.0,61581.0,0.144546]
[1727927917636,0.000818,61582.0,61581.0,0.38904278]
[1727927917868,0.000818,61582.0,61581.0,0.47593271]
[1727927918538,0.000818,61582.0,61581.0,0.57593271]
[1727927919216,0.0262717,61582.0,61581.0,0.57593271]
[1727927922820,0.0262717,61582.0,61581.0,0.6626365]
[1727927923247,0.0262717,61582.0,61581.0,0.66679124]
[1727927924583,0.000818,61582.0,61581.0,0.66679124]
[1727927925695,0.000818,61582.0,61581.0,0.66879124]
[1727927925911,0.000818,61582.0,61581.0,0.66679124]
[1727927926125,0.000818,61582.0,61581.0,0.66079124]
[1727927926562,0.000818,61582.0,61581.0,0.66279124]
[1727927927006,0.000818,61582.0,61581.0,0.67279124]
[1727927929127,0.02627041,61582.0,61581.0,0.67279124]
[1727927930750,0.02627041,61582.0,61581.0,0.66279124]
[1727927930976,0.02627041,61582.0,61581.0,0.67679124]
[1727927931192,0.02627041,61582.0,61581.0,0.66779124]
[1727927931398,0.02627041,61582.0,61581.0,0.68079124]
[1727927933777,0.02627041,61582.0,61581.0,0.68279124]
[1727927934877,0.000818,61582.0,61581.0,0.68279124]
[1727927935093,0.000818,61582.0,61581.0,0.68079124]
[1727927935630,0.000818,61582.0,61581.0,0.71341124]
[1727927936052,0.000818,61582.0,61581.0,0.71541124]
[1727927936271,0.000818,61582.0,61581.0,0.69941124]
[1727927936698,0.000818,61582.0,61581.0,0.71341124]
[1727927936906,0.000818,61582.0,61581.0,0.69941124]
[1727927937118,0.000818,61582.0,61581.0,0.71341124]
[1727927937329,0.000818,61582.0,61581.0,0.70041124]
[1727927937541,0.000818,61582.0,61581.0,0.71441124]
[1727927937986,0.000818,61582.0,61581.0,0.70041124]
[1727927938193,0.000818,61582.0,61581.0,0.71441124]
[1727927938849,0.000818,61582.0,61581.0,0.70041124]
[1727927939062,0.000818,61582.0,61581.0,0.71441124]
[1727927939276,0.000818,61582.0,61581.0,0.70041124]
[1727927939494,0.02627001,61582.0,61581.0,0.71441124]
[1727927944401,0.000818,61582.0,61581.0,0.26370074]
[1727927944636,0.000818,61582.0,61581.0,0.35040453]
[1727927945387,0.000818,61582.0,61581.0,0.33640453]
[1727927945636,0.000818,61582.0,61581.0,0.34840453]
[1727927945877,0.000818,61582.0,61581.0,0.33440453]
[1727927946091,0.000818,61582.0,61581.0,0.32240453]
[1727927946310,0.000818,61582.0,61581.0,0.33640453]
[1727927946523,0.000818,61582.0,61581.0,0.34940453]
[1727927946749,0.000818,61582.0,61581.0,0.75708802]
[1727927946985,0.000818,61582.0,61581.0,0.51259124]
[1727927947442,0.02627001,61582.0,61581.0,0.51259124]
[1727927947663,0.02627001,61582.0,61581.0,0.72031124]
[1727927948390,0.02627001,61582.0,61581.0,0.63360745]
[1727927948614,0.02627001,61582.0,61581.0,0.70731124]
[1727927948861,0.02627001,61582.0,61581.0,0.72131124]
[1727927949086,0.02627001,61582.0,61581.0,0.70731124]
[1727927949300,0.02627001,61582.0,61581.0,0.62821124]
[1727927949512,0.02627001,61582.0,61581.0,0.64221124]
[1727927949725,0.02627001,61582.0,61581.0,0.62821124]
[1727927949934,0.02627001,61582.0,61581.0,0.61421124]
[1727927950570,0.02627001,61582.0,61581.0,0.62821124]
[1727927951210,0.02627001,61582.0,61581.0,0.64221124]
[1727927951647,0.02627001,61582.0,61581.0,0.38302453]
[1727927951870,0.02627001,61582.0,61581.0,0.36902453]
[1727927952094,0.02627001,61582.0,61581.0,0.38302453]
[1727927954759,0.000818,61582.0,61581.0,0.38302453]
[1727927955861,0.000818,61582.0,61581.0,0.259546]
[1727927956070,0.000818,61582.0,61581.0,0.159546]
[1727927956071,0.082818,61582.0,61581.0,0.159546]
[1727927956718,0.082818,61582.0,61581.0,0.145546]
[1727927956934,0.09540427,61582.0,61581.0,0.131546]
[1727927957160,0.09540427,61582.0,61581.0,0.140546]
[1727927957374,0.09540427,61582.0,61581.0,0.131546]
[1727927957794,0.09540427,61582.0,61581.0,0.138546]
[1727927958011,0.09540427,61582.0,61581.0,0.131546]
[1727927958012,0.12085915,61582.0,61581.0,0.131546]
[1727927958222,0.12085915,61582.0,61581.0,0.143546]
[1727927958676,0.12085915,61582.0,61581.0,0.135546]
[1727927958883,0.12085915,61582.0,61581.0,0.139546]
[1727927959535,0.03885915,61582.0,61581.0,0.139546]
[1727927959959,0.02627288,61582.0,61581.0,0.139546]
[1727927960405,0.02627288,61582.0,61581.0,0.172166]
[1727927960617,0.02627288,61582.0,61581.0,0.17540856]
[1727927961096,0.02627288,61582.0,61581.0,0.17140856]
[1727927961316,0.02627288,61582.0,61581.0,0.18540856]
[1727927961534,0.02627288,61582.0,61581.0,0.18140856]
[1727927961753,0.02627288,61582.0,61581.0,0.16740856]
[1727927961961,0.02627288,61582.0,61581.0,0.19440856]
[1727927962171,0.02627288,61582.0,61581.0,0.35759527]
[1727927962412,0.02627288,61582.0,61581.0,0.44135271]
[1727927962844,0.02627288,61582.0,61581.0,0.45535271]
[1727927963759,0.02627288,61582.0,61581.0,0.45964906]
[1727927965061,0.000818,61582.0,61581.0,0.45964906]
[1727927969696,0.02626974,61582.0,61581.0,0.45964906]
[1727927970844,0.02626974,61582.0,61581.0,0.54635285]
[1727927974590,0.000818,61582.0,61581.0,0.54635285]
[1727927981257,0.000818,61582.0,61581.0,0.51373285]
[1727927982321,0.02627049,61582.0,61581.0,0.51373285]
[1727927987452,0.02627049,61582.0,61581.0,0.54635285]
[1727927987667,0.000818,61582.0,61581.0,0.54635285]
[1727927990642,0.02627011,61582.0,61581.0,0.54635285]
[1727927994568,0.000818,61582.0,61581.0,0.54635285]
[1727927999338,0.02626997,61582.0,61581.0,0.54635285]
[1727928000292,0.02070997,61582.0,61581.0,0.54635285]
[1727928001543,0.02070997,61582.0,61581.0,0.45964906]
[1727928001811,0.02070997,61582.0,61581.0,0.38316614]
[1727928002074,0.02070997,61582.0,61581.0,0.37886979]
[1727928002294,0.0169421,61587.0,61586.0,0.129899]
[1727928004819,0.0169421,61587.0,61586.0,0.24160279]
[1727928006605,0.0169421,61587.0,61586.0,0.154899]
[1727928010776,0.01674333,61587.0,61586.0,0.154899]
[1727928011002,0.01674333,61587.0,61586.0,0.36956884]
[1727928011227,0.01674333,61587.0,61586.0,0.62236]
[1727928011463,0.01674333,61587.0,61586.0,0.55000571]
[1727928011682,0.01674333,61587.0,61586.0,0.6464781]
[1727928011907,0.01654456,61587.0,61586.0,0.6464781]
[1727928012122,0.01654456,61587.0,61586.0,0.6214781]
[1727928012351,0.04199456,61587.0,61586.0,0.61780571]
[1727928012646,0.04199456,61587.0,61586.0,0.69011001]
[1727928013400,0.04184599,61587.0,61586.0,0.61780571]
[1727928013674,0.04184599,61587.0,61586.0,0.69011001]
[1727928013932,0.04184599,61587.0,61586.0,0.60380571]
[1727928014204,0.04184599,61587.0,61586.0,0.63180571]
[1727928014462,0.04184599,61587.0,61586.0,0.67998742]
[1727928014702,0.01599643,61587.0,61586.0,0.70408416]
[1727928014943,0.01599643,61587.0,61586.0,0.63180571]
[1727928015187,0.01599643,61587.0,61586.0,0.67998077]
[1727928015421,0.01599643,61587.0,61586.0,0.63180571]
[1727928015673,0.01599643,61587.0,61586.0,0.6799795]
[1727928015910,0.01599643,61587.0,61586.0,0.70408416]
[1727928016398,0.01599643,61587.0,61586.0,0.63180571]
[1727928016664,0.01594826,61587.0,61586.0,0.63180571]
[1727928017726,0.108,61600.0,61598.0,0.25810379]
[1727928017727,0.10790084,61600.0,61598.0,0.25810379]
[1727928017992,0.10790084,61600.0,61599.0,0.29305871]
[1727928018493,0.13334809,61600.0,61599.0,0.29305871]
[1727928019498,0.13334809,61600.0,61599.0,0.129872]
[1727928019995,0.13334809,61600.0,61599.0,0.138872]
[1727928020539,0.13416609,61600.0,61599.0,0.146872]
[1727928020803,0.30926609,61600.0,61599.0,0.017]
[1727928021099,0.30921792,61600.0,61599.0,0.017]
[1727928021334,0.30921792,61600.0,61599.0,0.146872]
[1727928022358,0.30911957,61600.0,61599.0,0.146872]
[1727928022636,0.21641957,61600.0,61599.0,0.39136878]
[1727928022888,0.21641957,61600.0,61599.0,0.146872]
[1727928023117,0.21612047,61600.0,61599.0,0.146872]
[1727928023356,0.21612047,61600.0,61599.0,0.138872]
[1727928023599,0.21612047,61600.0,61599.0,0.146872]
[1727928023857,0.21572303,61600.0,61599.0,0.146872]
[1727928024097,0.13332303,61600.0,61599.0,0.138872]
[1727928024344,0.13332303,61600.0,61599.0,0.142872]
[1727928024591,0.10787578,61600.0,61599.0,0.156872]
[1727928024824,0.10787578,61600.0,61599.0,0.142872]
[1727928025300,0.10787578,61600.0,61599.0,0.156872]
[1727928025577,0.10787578,61600.0,61599.0,0.129872]
[1727928025843,0.10787578,61600.0,61599.0,0.143872]
[1727928026572,0.11549785,61600.0,61599.0,0.143872]
[1727928026809,0.11549785,61600.0,61599.0,0.156872]
[1727928027301,0.11549785,61600.0,61599.0,0.142872]
[1727928027545,0.11488961,61600.0,61599.0,0.142872]
[1727928027783,0.11488961,61600.0,61599.0,0.143872]
[1727928028034,0.11488961,61600.0,61599.0,0.129872]
[1727928028287,0.11488961,61600.0,61599.0,0.156872]
[1727928028549,0.11488961,61600.0,61599.0,0.129872]
[1727928028788,0.11488961,61600.0,61599.0,0.143872]
[1727928029270,0.140338,61600.0,61599.0,0.143872]
[1727928029558,0.218338,61600.0,61599.0,0.143872]
[1727928029762,0.313238,61600.0,61599.0,0.014]
[1727928030014,0.313238,61600.0,61599.0,0.027]
[1727928030506,0.313238,61600.0,61599.0,0.014]
[1727928030743,0.313238,61600.0,61599.0,0.008]
[1727928030966,0.313238,61600.0,61599.0,0.017]
[1727928032007,0.57513918,61600.0,61599.0,0.017]
[1727928032734,0.62380578,61600.0,61599.0,0.017]
[1727928032996,0.62380578,61600.0,61599.0,0.009]
[1727928033212,0.62381936,61600.0,61599.0,0.009]
[1727928033693,0.0804,61595.0,61589.0,0.24449678]
[1727928033910,0.129885,61593.0,61589.0,0.24449678]
[1727928034150,0.00806084,61594.0,61591.0,0.129889]
[1727928034411,0.129882,61594.0,61590.0,0.129891]
[1727928034656,0.0804,61595.0,61590.0,0.129891]
[1727928034873,0.00801197,61593.0,61590.0,0.129891]
[1727928035106,0.00801197,61593.0,61591.0,0.129888]
[1727928035610,0.0804,61595.0,61589.0,0.24649678]
[1727928035850,0.00801197,61592.0,61590.0,0.003]
[1727928036601,0.00801197,61592.0,61590.0,0.006]
[1727928036851,0.00801197,61592.0,61590.0,0.003]
[1727928037065,0.00801197,61592.0,61589.0,0.129892]
[1727928037305,0.00801197,61592.0,61591.0,0.004]
[1727928037535,0.00801197,61592.0,61590.0,0.005]
[1727928037778,0.00801197,61592.0,61590.0,0.011]
[1727928038018,0.00801197,61592.0,61589.0,0.129892]
[1727928038511,0.12989,61591.0,61589.0,0.006]
[1727928038751,0.12989,61591.0,61586.0,0.131534]
[1727928038995,0.00800949,61590.0,61587.0,0.129897]
[1727928039230,0.00800949,61590.0,61586.0,0.001636]
[1727928039231,0.00800949,61590.0,61589.0,0.37438978]
[1727928039487,0.00800949,61590.0,61589.0,0.134893]
[1727928040012,0.02545251,61591.0,61590.0,0.129891]
[1727928040480,0.02545251,61591.0,61587.0,0.007]
[1727928040722,0.02545251,61591.0,61589.0,0.24449678]
[1727928040954,0.02545251,61591.0,61590.0,0.129891]
[1727928041664,0.02545251,61591.0,61590.0,0.136891]
[1727928044058,0.02545251,61591.0,61590.0,0.138527]
[1727928044293,0.00061907,61591.0,61590.0,0.138527]
[1727928044525,0.01,61592.0,61591.0,0.129889]
[1727928047139,0.01,61592.0,61591.0,0.141889]
[1727928047624,0.01,61592.0,61591.0,0.152889]
[1727928047862,0.01,61592.0,61591.0,0.141889]
[1727928048086,0.01,61592.0,61590.0,0.001636]
[1727928048310,0.14787239,61592.0,61591.0,0.012]
[1727928048540,0.14787239,61592.0,61591.0,0.023]
[1727928048809,0.01798539,61592.0,61591.0,0.023]
[1727928049748,0.01798539,61592.0,61590.0,0.131526]
[1727928050238,0.01798539,61592.0,61590.0,0.154526]
[1727928050458,0.01798539,61592.0,61590.0,0.142526]
[1727928050680,0.04343718,61592.0,61591.0,0.012]
[1727928050907,0.04343718,61592.0,61590.0,0.131526]
[1727928051132,0.04343718,61592.0,61590.0,0.136526]
[1727928051415,0.04343718,61592.0,61590.0,0.011636]
[1727928051643,0.04343718,61592.0,61590.0,0.001636]
[1727928052838,0.04343718,61592.0,61590.0,0.131527]
[1727928053065,0.04343718,61592.0,61591.0,0.005]
[1727928053296,0.04343718,61592.0,61591.0,0.01]
[1727928053530,0.04343718,61592.0,61591.0,0.129889]
[1727928054007,0.04343718,61592.0,61590.0,0.136527]
[1727928054233,0.04343718,61592.0,61590.0,0.131527]
[1727928054462,0.04343718,61592.0,61591.0,0.005]
[1727928054699,0.04343718,61592.0,61591.0,0.01]
[1727928055834,0.04343718,61592.0,61591.0,0.005]
[1727928056055,0.04343718,61592.0,61590.0,0.131527]
[1727928056277,0.04425518,61592.0,61590.0,0.136527]
[1727928056534,0.04425518,61592.0,61590.0,0.141527]
[1727928056754,0.04425518,61592.0,61591.0,0.129889]
[1727928057208,0.01880339,61592.0,61591.0,0.129889]
[1727928057434,0.01880339,61592.0,61590.0,0.131527]
[1727928057921,0.01880339,61592.0,61591.0,0.01]
[1727928058149,0.14868939,61592.0,61591.0,0.01]
[1727928058855,0.23118939,61592.0,61591.0,0.005]
[1727928059383,0.129889,61591.0,61590.0,0.006636]
[1727928059616,0.129889,61591.0,61590.0,0.011636]
[1727928059872,0.13782154,61591.0,61590.0,0.006636]
[1727928060101,0.13782154,61591.0,61590.0,0.001636]
[1727928060578,0.1632757,61591.0,61590.0,0.001636]
[1727928060829,0.1632757,61591.0,61590.0,0.014636]
[1727928061335,0.3367757,61591.0,61590.0,0.014636]
[1727928061832,0.51961654,61591.0,61590.0,0.014636]
[1727928062075,0.59063048,61591.0,61590.0,0.014636]
[1727928062312,0.59059641,61591.0,61590.0,0.014636]
[1727928062575,0.59059641,61591.0,61590.0,0.008636]
[1727928062828,0.59259641,61591.0,61590.0,0.008636]
[1727928063070,0.59259641,61591.0,61590.0,0.001636]
[1727928063305,0.56623746,61591.0,61590.0,0.004636]
[1727928063545,0.5682376,61591.0,61590.0,0.001636]
[1727928063775,0.5682376,61591.0,61590.0,0.004636]
[1727928063776,0.47094058,61591.0,61590.0,0.004636]
[1727928063997,0.61770037,61591.0,61590.0,0.005636]
[1727928064266,0.51907747,61591.0,61590.0,0.002636]
[1727928064783,0.131897,61587.0,61586.0,0.001636]
[1727928065016,0.408675,61587.0,61586.0,0.001636]
[1727928065252,0.4044635,61587.0,61586.0,0.001636]
[1727928065791,0.6260476,61587.0,61586.0,0.001636]
[1727928066258,0.62601888,61587.0,61586.0,0.001636]
[1727928066506,0.78920559,61587.0,61586.0,0.001636]
[1727928066742,0.79820559,61587.0,61586.0,0.002636]
[1727928066964,0.77389141,61587.0,61586.0,0.002636]
[1727928067195,0.67665021,61587.0,61586.0,0.002636]
[1727928067424,0.77386178,61587.0,61586.0,0.002636]
[1727928067653,0.66765021,61587.0,61586.0,0.001636]
[1727928067888,0.70311153,61587.0,61586.0,0.002636]
[1727928068135,0.80032365,61587.0,61586.0,0.002636]
[1727928068638,0.8002993,61587.0,61586.0,0.002636]
[1727928069154,0.70311153,61587.0,61586.0,0.002636]
[1727928069443,0.43134417,61587.0,61586.0,0.002636]
[1727928069657,0.35585994,61587.0,61586.0,0.002636]
[1727928070621,0.35585994,61587.0,61586.0,0.003636]
[1727928070622,0.36885994,61587.0,61586.0,0.003636]
[1727928071098,0.35885994,61587.0,61586.0,0.002636]
[1727928071327,0.35685994,61587.0,61586.0,0.002636]
[1727928071566,0.34585994,61587.0,61586.0,0.001636]
[1727928071797,0.36185994,61587.0,61586.0,0.002636]
[1727928072056,0.26185994,61587.0,61586.0,0.002636]
[1727928072531,0.25085994,61587.0,61586.0,0.001636]
[1727928074163,0.16315994,61587.0,61586.0,0.001636]
[1727928074393,0.16715994,61587.0,61586.0,0.001636]
[1727928074899,0.16315994,61587.0,61586.0,0.001636]
[1727928075361,0.16615994,61587.0,61586.0,0.001636]
[1727928075827,0.24535994,61587.0,61586.0,0.001636]
[1727928076073,0.46485994,61587.0,61586.0,0.001636]
[1727928076299,0.61472654,61587.0,61586.0,0.001636]
[1727928077458,0.58926522,61587.0,61586.0,0.001636]
[1727928077459,0.63784945,61587.0,61586.0,0.001636]
[1727928077717,0.63784945,61587.0,61586.0,0.003636]
[1727928077718,0.60326522,61587.0,61586.0,0.003636]
[1727928077954,0.66915321,61587.0,61586.0,0.002636]
[1727928078215,0.67115433,61587.0,61586.0,0.002636]
[1727928078463,0.66215433,61587.0,61586.0,0.002636]
[1727928078688,0.67115433,61587.0,61586.0,0.002636]
[1727928078933,0.60226522,61587.0,61586.0,0.002636]
[1727928079170,0.67515471,61587.0,61586.0,0.002636]
[1727928079408,0.68815471,61587.0,61586.0,0.003636]
[1727928080337,0.71361723,61587.0,61586.0,0.003636]
[1727928080805,0.64072774,61587.0,61586.0,0.003636]
[1727928081041,0.76086475,61587.0,61586.0,0.003636]
[1727928081274,0.63938004,61587.0,61586.0,0.003636]
[1727928081953,0.74793304,61587.0,61586.0,0.003636]
[1727928082181,0.91923304,61587.0,61586.0,0.003636]
[1727928082470,0.91923304,61587.0,61581.0,0.001636]
[1727928082471,0.431708,61582.0,61581.0,0.001636]
[1727928082705,0.56387288,61582.0,61581.0,0.001636]
[1727928082951,0.56387288,61582.0,61573.0,0.003454]
[1727928082952,0.131924,61574.0,61573.0,0.003454]
[1727928083177,0.56388888,61574.0,61573.0,0.003454]
[1727928083424,0.75752839,61574.0,61573.0,0.003454]
[1727928083709,0.7829949,61574.0,61573.0,0.003454]
[1727928083968,0.21464644,61574.0,61573.0,0.003454]
[1727928084220,0.03304644,61574.0,61573.0,0.003454]
[1727928084454,0.04304644,61574.0,61573.0,0.003454]
[1727928084684,0.03304644,61574.0,61573.0,0.003454]
[1727928085133,0.04604644,61574.0,61573.0,0.003454]
[1727928085390,0.04504644,61574.0,61573.0,0.003454]
[1727928085622,0.04504644,61574.0,61573.0,0.308981]
[1727928085855,0.03746651,61574.0,61573.0,0.308981]
[1727928086754,0.02546651,61574.0,61573.0,0.308981]
[1727928086980,0.02646651,61574.0,61573.0,0.308981]
[1727928087469,0.02746651,61574.0,61573.0,0.308981]
[1727928087705,0.02546651,61574.0,61573.0,0.308981]
[1727928087935,0.02646651,61574.0,61573.0,0.308981]
[1727928088160,0.02746651,61574.0,61573.0,0.308981]
[1727928089969,0.02546651,61574.0,61573.0,0.308981]
[1727928090422,0.02546651,61574.0,61573.0,0.003454]
[1727928090674,0.02646651,61574.0,61573.0,0.003454]
[1727928090912,0.02546651,61574.0,61573.0,0.003454]
[1727928091396,0.02746651,61574.0,61573.0,0.133381]
[1727928091626,0.02646651,61574.0,61573.0,0.133381]
[1727928093505,0.02746651,61574.0,61573.0,0.138381]
[1727928093975,0.02846651,61574.0,61573.0,0.013454]
[1727928094485,0.03643787,61574.0,61573.0,0.013454]
[1727928095196,0.16636187,61574.0,61573.0,0.013454]
[1727928095647,0.14089536,61574.0,61573.0,0.013454]
[1727928096383,0.13889536,61574.0,61573.0,0.008454]
[1727928096635,0.13989536,61574.0,61573.0,0.008454]
[1727928097087,0.14089536,61574.0,61573.0,0.003454]
[1727928097346,0.14189536,61574.0,61573.0,0.003454]
[1727928097783,0.14089536,61574.0,61573.0,0.003454]
[1727928098017,0.41694586,61574.0,61573.0,0.003454]
[1727928098250,0.61986879,61574.0,61573.0,0.003454]
[1727928098695,0.54694586,61574.0,61573.0,0.003454]
[1727928099910,0.69279172,61574.0,61573.0,0.003454]
[1727928100145,0.71326007,61574.0,61573.0,0.003454]
[1727928100410,0.71328953,61574.0,61573.0,0.003454]
[1727928100632,0.67808421,61574.0,61573.0,0.003454]
[1727928100893,0.82396077,61574.0,61573.0,0.003454]
[1727928101135,0.66508421,61574.0,61573.0,0.003454]
[1727928101363,0.82494331,61574.0,61573.0,0.003454]
[1727928101818,0.66508421,61574.0,61573.0,0.003454]
[1727928102006,0.72727315,61574.0,61573.0,0.003454]
[1727928102264,0.72726277,61574.0,61573.0,0.003454]
[1727928102992,0.72526277,61574.0,61573.0,0.003454]
[1727928103215,0.7272592,61574.0,61573.0,0.003454]
[1727928103694,0.7272592,61574.0,61561.0,0.0446889]
[1727928103695,0.13195,61562.0,61561.0,0.0446889]
[1727928103925,0.23195,61562.0,61561.0,0.0446889]
[1727928104155,0.23195,61562.0,61558.0,0.24449678]
[1727928104156,0.129956,61559.0,61558.0,0.24449678]
[1727928104608,0.129958,61558.0,61551.0,0.24449678]
[1727928104809,0.129738,61558.0,61551.0,0.24449678]
[1727928105285,0.13741196,61558.0,61551.0,0.24449678]
[1727928107383,0.14141196,61558.0,61551.0,0.24449678]
[1727928109288,0.14341196,61558.0,61551.0,0.24449678]
[1727928109410,0.13941196,61558.0,61551.0,0.24449678]
[1727928109853,0.14841196,61558.0,61551.0,0.24449678]
[1727928110074,0.14841196,61558.0,61546.0,0.29388018]
[1727928110295,0.13941196,61558.0,61546.0,0.29388018]
[1727928110758,0.24741196,61558.0,61546.0,0.29388018]
[1727928110967,0.27288429,61558.0,61546.0,0.29388018]
[1727928111196,0.41376325,61558.0,61546.0,0.29388018]
[1727928112127,0.27088429,61558.0,61546.0,0.29388018]